bitfinex/quotes_ETHUSD_20220106
["timestamp","ask_amount","ask_price","bid_price","bid_amount"]
[1641490025234,1.64096,3418.1,3417.9,4.68532139]
[1641490025639,1.64096,3418.1,3418.0,0.0096632]
[1641490026086,1.46296,3418.1,3418.0,0.0096632]
[1641490026288,3.08558302,3418.1,3418.0,0.0096632]
[1641490026785,3.08558302,3418.1,3418.0,2.4886279]
[1641490026987,3.08558302,3418.1,3418.0,2.4789647]
[1641490027185,3.08558302,3418.1,3418.0,2.4886279]
[1641490031132,3.08558302,3418.1,3418.0,6.02386903]
[1641490032032,3.08558302,3418.1,3418.0,2.4886279]
[1641490032935,1.31506044,3418.3,3418.0,2.4886279]
[1641490033383,2.45455582,3418.2,3418.1,0.00909477]
[1641490034383,2.45455582,3418.2,3418.1,2.48805947]
[1641490034978,1.72308582,3418.2,3418.1,2.48805947]
[1641490036383,1.72392999,3418.2,3418.1,2.48805947]
[1641490036582,0.00084417,3418.2,3418.1,2.48805947]
[1641490036783,0.00084417,3418.2,3418.1,3.48805947]
[1641490036983,0.00084417,3418.2,3418.1,7.02213202]
[1641490037236,0.00084417,3418.2,3418.1,6.02213202]
[1641490037437,0.00084417,3418.2,3418.1,7.02213202]
[1641490037735,0.00084417,3418.2,3418.1,3.48805947]
[1641490038137,0.7309039,3418.5,3418.1,2.48805947]
[1641490038535,0.7309039,3418.5,3418.2,0.00852635]
[1641490038738,3.9e-06,3418.5,3418.2,2.59409705]
[1641490038940,20.2017,3420.6,3419.4,3.96640414]
[1641490039147,3.6755,3420.6,3419.5,0.422]
[1641490039337,0.00170527,3420.0,3419.5,1.10859878]
[1641490039540,2.89819933,3420.6,3419.5,1.10859878]
[1641490039737,1.57509991,3420.6,3419.5,1.40859878]
[1641490039937,0.7840258,3420.8,3420.4,2.21446914]
[1641490040141,0.7840258,3420.8,3420.5,0.422]
[1641490040337,0.00397897,3420.7,3420.5,0.422]
[1641490040537,0.00397897,3420.7,3420.5,1.422]
[1641490040735,0.00341055,3420.6,3420.5,1.422]
[1641490041580,0.00341055,3420.6,3420.5,9.2855707]
[1641490041784,0.00341055,3420.6,3420.5,6.7]
[1641490041980,0.6741806,3421.2,3420.5,6.7]
[1641490041981,0.46979722,3421.2,3420.5,6.7]
[1641490042182,0.46979722,3421.2,3420.9,5.278]
[1641490042380,0.46979722,3421.2,3421.0,26.43977049]
[1641490042581,0.46979722,3421.2,3421.0,27.43977049]
[1641490042983,0.46979722,3421.2,3421.1,2.05510965]
[1641490043182,0.46979722,3421.2,3421.1,2.47710965]
[1641490043380,0.47320776,3421.2,3421.1,3.43089307]
[1641490043885,0.47320776,3421.2,3421.1,3.44394293]
[1641490044281,0.47320776,3421.2,3421.1,4.74394293]
[1641490044482,0.47320776,3421.2,3421.1,4.44394293]
[1641490044740,0.47320776,3421.2,3421.1,7.10860656]
[1641490047037,0.47428478,3421.2,3421.1,7.10860656]
[1641490047638,0.47428478,3421.2,3421.1,6.10860656]
[1641490048141,0.47428478,3421.2,3421.1,5.13654147]
[1641490048780,0.47428478,3421.2,3421.1,3.73149691]
[1641490049380,1.52128016,3421.2,3421.1,3.73149691]
[1641490049782,1.52128016,3421.2,3421.1,0.01304986]
[1641490050381,0.47428478,3421.2,3421.1,0.01304986]
[1641490051381,2.13995252,3421.2,3421.1,0.01304986]
[1641490051585,0.47428478,3421.2,3421.1,0.01304986]
[1641490052441,0.47428478,3421.2,3421.1,1.06434735]
[1641490053040,0.47428478,3421.2,3421.1,0.01304986]
[1641490053839,0.47428478,3421.2,3421.1,1.41809442]
[1641490055441,0.47428478,3421.2,3421.1,0.01304986]
[1641490056188,0.47428478,3421.2,3421.1,1.41809442]
[1641490056589,0.47428478,3421.2,3421.1,0.01304986]
[1641490057591,0.47428478,3421.2,3421.1,2.49034422]
[1641490058295,0.47428478,3421.2,3421.1,3.54194507]
[1641490059094,0.47428478,3421.2,3421.1,2.49034422]
[1641490060232,0.8302271,3421.4,3421.2,0.52571522]
[1641490061333,0.8302271,3421.4,3421.3,3.52918727]
[1641490061533,3.03944472,3421.4,3421.3,3.52918727]
[1641490061733,3.04058156,3421.4,3421.3,3.52918727]
[1641490061936,0.83136394,3421.4,3421.3,3.52918727]
[1641490062940,0.83136394,3421.4,3421.3,2.47729436]
[1641490063784,0.83136394,3421.4,3421.3,3.52808896]
[1641490063982,2.25094272,3421.5,3421.4,0.16863606]
[1641490064380,0.73077,3421.7,3421.4,0.16863606]
[1641490064781,0.00113685,3421.6,3421.4,0.16863606]
[1641490065381,0.00113685,3421.6,3421.5,2.47729436]
[1641490065783,1.93899134,3421.6,3421.5,2.47729436]
[1641490067448,1.88899134,3421.6,3421.5,2.47729436]
[1641490068444,1.89001275,3421.6,3421.5,2.47729436]
[1641490071779,0.00102141,3421.6,3421.5,2.47729436]
[1641490072982,1.66940086,3421.6,3421.5,2.47729436]
[1641490079190,1.66940086,3421.6,3421.3,1.0507946]
[1641490079191,3.4686,3421.4,3421.3,1.0507946]
[1641490079388,0.6,3421.5,3420.0,8.70492706]
[1641490079389,3.6,3421.2,3420.8,2.11491377]
[1641490079590,3.6,3421.2,3421.1,0.50091295]
[1641490079787,3.9,3421.2,3420.8,1.40228394]
[1641490079989,3.9,3421.2,3421.1,4.212e-05]
[1641490080191,7.25462742,3421.1,3420.8,0.00012606]
[1641490080390,10.25,3420.9,3420.3,2.55110068]
[1641490080592,10.25,3420.9,3420.0,3.71844705]
[1641490080593,4.9,3420.6,3420.0,3.71844705]
[1641490080790,5.322,3420.6,3419.8,0.00290717]
[1641490080989,1.4625144,3420.4,3420.1,0.00170527]
[1641490081389,4.88425665,3420.3,3419.7,0.00397897]
[1641490081590,0.73123,3420.1,3419.7,0.00397897]
[1641490081792,1.46237,3420.0,3419.7,0.00397897]
[1641490081992,1.46247,3420.1,3419.7,0.00397897]
[1641490081993,0.73124,3420.1,3419.7,0.00397897]
[1641490082434,4.66513994,3420.3,3419.7,0.00397897]
[1641490082632,2.10868868,3420.3,3419.7,0.00397897]
[1641490083232,0.73109,3420.1,3419.7,0.00397897]
[1641490083432,2.10868868,3420.3,3419.7,0.00397897]
[1641490084636,0.73106,3420.2,3419.7,0.00397897]
[1641490084839,2.10868868,3420.3,3419.7,0.00397897]
[1641490085637,0.73103,3420.5,3419.7,2.10364069]
[1641490085885,1.21606068,3420.7,3419.7,2.10364069]
[1641490086083,0.00113685,3420.6,3419.8,0.02789153]
[1641490086483,0.00113685,3420.6,3419.9,0.00284212]
[1641490087083,2.08267469,3420.3,3419.9,0.00284212]
[1641490089086,0.731,3420.5,3419.9,0.00284212]
[1641490090036,0.00080775,3420.2,3419.9,0.00284212]
[1641490090434,0.00080775,3420.2,3420.0,1.71806704]
[1641490091840,0.00080775,3420.2,3420.1,0.02447719]
[1641490093680,0.00113685,3420.6,3420.1,1.48613719]
[1641490094081,0.00113685,3420.6,3420.2,0.00113685]
[1641490094282,0.00113685,3420.6,3420.3,0.73086]
[1641490097137,1.60302487,3420.6,3420.2,0.00113685]
[1641490097537,1.60302487,3420.6,3420.4,0.02445099]
[1641490097940,0.731,3420.5,3420.4,0.02445099]
[1641490098538,1.60302487,3420.6,3420.4,0.02445099]
[1641490099039,2.33402487,3420.6,3420.4,1.06851748]
[1641490099638,2.57653058,3420.5,3420.4,0.02445099]
[1641490099839,2.33402487,3420.6,3420.4,0.02445099]
[1641490105044,1.60302487,3420.6,3420.4,0.02445099]
[1641490105439,0.00113685,3420.6,3420.4,0.02445099]
[1641490106048,0.73212685,3420.6,3420.4,0.02445099]
[1641490106739,2.41545773,3420.6,3420.4,0.02445099]
[1641490112434,2.41545773,3420.6,3420.4,1.41653964]
[1641490113838,2.41545773,3420.6,3420.4,0.02445099]
[1641490114436,1.68446773,3420.6,3420.4,0.02445099]
[1641490114936,0.00113685,3420.6,3420.4,0.02445099]
[1641490115535,0.00113685,3420.6,3420.5,2.47775961]
[1641490115985,1.76348554,3421.0,3420.5,2.47775961]
[1641490116585,0.73092,3420.9,3420.5,2.47775961]
[1641490116985,0.00227369,3420.8,3420.5,2.47775961]
[1641490117387,0.00170527,3420.7,3420.5,2.47775961]
[1641490117588,0.00170527,3420.7,3420.5,3.77775961]
[1641490117787,0.00113685,3420.6,3420.5,4.50861961]
[1641490118388,0.00113685,3420.6,3420.5,5.59407214]
[1641490118587,0.00113685,3420.6,3420.5,10.01848922]
[1641490118788,0.00113685,3420.6,3420.5,7.47757124]
[1641490119189,0.8643885,3421.9,3420.7,0.73065]
[1641490119388,0.8643885,3421.9,3421.3,0.73065]
[1641490119638,0.00682108,3421.8,3421.3,2.87347709]
[1641490119840,0.00682108,3421.8,3421.4,0.7306674]
[1641490120137,0.00625265,3421.7,3421.4,0.7306674]
[1641490120337,0.00625265,3421.7,3421.3,0.73065]
[1641490120538,0.00625265,3421.7,3420.5,5.28995076]
[1641490120539,0.00568423,3421.6,3420.7,0.73083]
[1641490120738,0.00568423,3421.6,3420.5,4.56795076]
[1641490120940,0.00511581,3421.5,3420.5,4.56795076]
[1641490121137,0.00511581,3421.5,3420.9,1.04357639]
[1641490121339,2.74294237,3421.2,3420.9,1.04357639]
[1641490121737,0.00284211,3421.1,3420.9,1.04357639]
[1641490122138,0.00227369,3421.0,3420.4,1.06802738]
[1641490122539,0.00170527,3420.9,3420.4,1.06802738]
[1641490122939,0.00113684,3420.8,3420.4,1.06802738]
[1641490123139,0.00113684,3420.8,3420.4,1.96702339]
[1641490123389,0.73093,3420.9,3420.4,0.02445099]
[1641490123790,0.00113684,3420.8,3420.4,0.02445099]
[1641490124195,0.00284211,3421.1,3420.4,1.41310099]
[1641490124591,0.00227369,3421.0,3420.4,1.41310099]
[1641490124791,0.00227369,3421.0,3420.8,0.0126704]
[1641490124990,0.00170527,3420.9,3420.6,1.90181997]
[1641490125392,0.00113684,3420.8,3420.6,3.67625636]
[1641490125792,0.00625265,3421.7,3420.9,1.3884704]
[1641490125993,1.87696442,3421.7,3420.9,1.3884704]
[1641490126191,0.00568423,3421.6,3420.9,0.6577]
[1641490126392,0.00568423,3421.6,3420.7,1.04357639]
[1641490126393,0.00568423,3421.6,3421.1,0.73074]
[1641490126592,0.00511581,3421.5,3421.1,0.73074]
[1641490126798,0.00511581,3421.5,3420.7,2.50507639]
[1641490126994,0.8643885,3421.9,3420.7,2.50507639]
[1641490126995,0.00454738,3421.4,3420.7,2.50507639]
[1641490127245,2.1139619,3421.4,3420.7,2.50507639]
[1641490127436,0.73480896,3421.3,3420.7,2.50507639]
[1641490127839,0.00341054,3421.2,3420.7,1.4615]
[1641490128238,0.00284211,3421.1,3420.7,1.4615]
[1641490128540,0.00227369,3421.0,3420.7,1.4615]
[1641490128738,0.00227369,3421.0,3420.8,1.4158485]
[1641490128937,0.73085,3421.2,3420.8,1.4158485]
[1641490128938,0.00170527,3420.9,3420.8,1.4158485]
[1641490131089,0.00170527,3420.9,3420.8,0.02441331]
[1641490136638,10.09690527,3420.9,3420.8,2.50204854]
[1641490137636,28.21690527,3420.9,3420.8,2.50204854]
[1641490137836,28.51690527,3420.9,3420.8,2.50204854]
[1641490138036,19.01690527,3420.9,3420.8,2.50204854]
[1641490139089,19.51974428,3420.9,3420.8,2.50204854]
[1641490139893,0.73119,3420.4,3419.8,1.41055737]
[1641490140092,17.12,3419.9,3419.8,1.41055737]
[1641490140390,1.3793,3419.9,3419.6,1.09275027]
[1641490140590,0.3,3419.8,3419.6,1.09275027]
[1641490140889,2.20328142,3419.7,3419.6,1.09275027]
[1641490141089,1.03132,3419.8,3419.6,1.09275027]
[1641490141389,1.03132,3419.8,3419.6,1.09843451]
[1641490141390,1.46259,3419.8,3419.6,1.09843451]
[1641490141788,3.1938673,3419.8,3419.6,1.09843451]
[1641490141990,0.73132,3419.8,3419.6,1.09843451]
[1641490142536,1.7841602,3419.7,3419.6,1.09843451]
[1641490146786,0.73132,3419.8,3419.6,1.09843451]
[1641490147183,0.73132,3419.8,3419.7,0.00511582]
[1641490147685,2.42555918,3419.8,3419.7,0.00511582]
[1641490147888,2.72555918,3419.8,3419.7,0.00511582]
[1641490148286,2.42555918,3419.8,3419.7,0.00511582]
[1641490149288,0.73132,3419.8,3419.7,0.00511582]
[1641490149489,5.00523392,3420.8,3419.7,0.00511582]
[1641490149745,0.73103,3420.5,3419.7,0.00511582]
[1641490150345,2.10122236,3420.3,3419.7,0.00511582]
[1641490151046,0.73108,3420.2,3419.7,0.00511582]
[1641490151447,2.10122236,3420.3,3419.7,0.00511582]
[1641490151647,2.83236236,3420.3,3419.7,0.00511582]
[1641490152248,0.73112,3420.1,3419.7,0.00511582]
[1641490153690,0.73106,3420.4,3419.7,0.00511582]
[1641490153891,1.46216,3420.5,3419.7,0.00511582]
[1641490154491,1.46216,3420.5,3419.8,0.01795011]
[1641490154691,1.46216,3420.5,3420.0,1.73737527]
[1641490154891,1.46216,3420.5,3419.9,0.00397897]
[1641490155090,1.46216,3420.5,3420.1,0.00284212]
[1641490155297,0.73109,3420.2,3419.9,0.00397897]
[1641490158240,17.12,3420.1,3419.9,0.00397897]
[1641490158440,0.73109,3420.2,3419.9,0.00397897]
[1641490159240,1.84617826,3420.0,3419.9,0.00397897]
[1641490159439,1.46225,3420.2,3419.9,0.00397897]
[1641490159938,1.46225,3420.2,3420.0,0.01795005]
[1641490160338,1.46225,3420.2,3420.1,0.00284212]
[1641490160544,3.66095083,3420.2,3420.1,0.00284212]
[1641490160739,3.66095083,3420.2,3420.1,2.48125978]
[1641490161598,6.1297077,3420.2,3420.1,2.48125978]
[1641490161795,6.1310394,3420.2,3420.1,2.48125978]
[1641490162094,3.66095083,3420.2,3420.1,2.48125978]
[1641490165038,0.73109,3420.2,3420.1,2.48125978]
[1641490165837,0.73109,3420.2,3420.1,2.49920213]
[1641490168700,0.73103,3420.5,3420.1,2.49920213]
[1641490168905,5.00523392,3420.8,3420.1,2.49920213]
[1641490169099,5.00523392,3420.8,3420.2,0.0022737]
[1641490169399,5.00523392,3420.8,3420.4,1.97926794]
[1641490170201,5.00409708,3420.8,3420.4,1.97926794]
[1641490171001,5.00409708,3420.8,3420.5,2.47841766]
[1641490171202,5.00409708,3420.8,3420.5,2.49632559]
[1641490171403,5.73504708,3420.8,3420.5,2.49632559]
[1641490172460,5.73504708,3420.8,3420.6,2.47841766]
[1641490174666,2.45128999,3420.7,3420.6,2.47841766]
[1641490176391,2.45128999,3420.7,3420.5,0.01790793]
[1641490176592,1.7980053,3420.6,3420.2,0.0022737]
[1641490176794,1.46215,3420.5,3420.2,0.0022737]
[1641490176992,1.46215,3420.5,3419.9,0.00397897]
[1641490177294,3.2601453,3420.6,3419.9,2.48170983]
[1641490177696,3.2601453,3420.6,3420.0,0.00341055]
[1641490178293,3.2601453,3420.6,3420.0,2.48114141]
[1641490178498,0.73105,3420.4,3420.0,2.48114141]
[1641490178697,0.73105,3420.4,3420.1,0.00284212]
[1641490178894,2.43116317,3420.3,3420.1,0.00284212]
[1641490179094,0.73105,3420.4,3420.1,2.48057298]
[1641490179493,1.46217,3420.4,3420.2,0.0022737]
[1641490179755,0.73105,3420.4,3420.2,0.0022737]
[1641490180151,0.73105,3420.4,3420.0,0.00341055]
[1641490180951,0.73105,3420.2,3420.0,0.00341055]
[1641490181154,0.73105,3420.2,3420.1,2.47773086]
[1641490181552,0.73105,3420.2,3420.1,2.48057298]
[1641490182153,0.73105,3420.2,3420.1,2.39851514]
[1641490182957,0.73102,3420.4,3420.1,2.39851514]
[1641490183155,1.46212,3420.6,3420.1,2.39851514]
[1641490183393,5.00409708,3420.8,3420.2,0.0022737]
[1641490184595,0.73099,3420.5,3420.2,0.0022737]
[1641490185796,0.73096,3420.6,3420.2,0.0022737]
[1641490185998,5.00409708,3420.8,3420.3,1.97754017]
[1641490186401,5.00409708,3420.8,3420.4,0.00113685]
[1641490186996,5.73502708,3420.8,3420.4,0.00113685]
[1641490187651,5.73502708,3420.8,3420.5,0.01790775]
[1641490188450,5.00409708,3420.8,3420.5,0.01790775]
[1641490188650,5.00409708,3420.8,3420.5,1.01790775]
[1641490189054,5.00409708,3420.8,3420.5,0.01790775]
[1641490189650,5.00409708,3420.8,3420.5,0.74873775]
[1641490189953,5.00409708,3420.8,3420.6,2.12932635]
[1641490190150,5.00409708,3420.8,3420.6,3.42932635]
[1641490190916,4.98826112,3420.8,3420.6,4.16013635]
[1641490191401,4.98826112,3420.8,3420.6,3.12932635]
[1641490191601,4.98826112,3420.8,3420.6,1.7308551]
[1641490191799,4.98826112,3420.8,3420.6,5.24630992]
[1641490191998,1.02548123,3420.8,3420.6,4.24630992]
[1641490192199,1.02548123,3420.8,3420.7,1.0]
[1641490192998,1.02548123,3420.8,3420.6,2.4616651]
[1641490193200,1.02548123,3420.8,3420.7,0.01789624]
[1641490194203,1.02548123,3420.8,3420.7,1.41087987]
[1641490194640,1.02548123,3420.8,3420.7,2.41087987]
[1641490195040,1.02548123,3420.8,3420.7,1.01789624]
[1641490195442,1.02548123,3420.8,3420.7,0.01789624]
[1641490195641,1.02548123,3420.8,3420.7,1.01789624]
[1641490197242,1.02548123,3420.8,3420.7,3.10698211]
[1641490197445,1.02548123,3420.8,3420.7,2.10698211]
[1641490197641,1.02548123,3420.8,3420.7,3.10698211]
[1641490198048,1.02548123,3420.8,3420.7,1.01789624]
[1641490199596,1.02548123,3420.8,3420.7,3.80254106]
[1641490200296,1.02548123,3420.8,3420.7,2.05645052]
[1641490200497,1.02548123,3420.8,3420.7,4.75109209]
[1641490200698,1.02548123,3420.8,3420.7,2.05645052]
[1641490200897,1.02548123,3420.8,3420.7,1.01789624]
[1641490201097,1.02548123,3420.8,3420.7,0.01789624]
[1641490201499,1.02548123,3420.8,3420.7,1.05786936]
[1641490201699,1.02548123,3420.8,3420.7,2.05786936]
[1641490202758,1.02548123,3420.8,3420.7,3.42027712]
[1641490204362,1.02548123,3420.8,3420.7,2.42027712]
[1641490204568,1.00895989,3420.8,3420.7,2.42027712]
[1641490204761,2.63555056,3420.8,3420.7,2.42027712]
[1641490205059,2.63555056,3420.8,3420.1,1.38473905]
[1641490205060,0.73111,3420.6,3420.3,0.69928434]
[1641490205259,1.46222,3420.6,3420.3,0.69928434]
[1641490205904,1.13512186,3420.5,3420.1,1.38473905]
[1641490206102,1.70502123,3420.0,3419.9,6.2]
[1641490206803,0.73108,3420.3,3419.9,6.2]
[1641490207003,0.00113685,3420.6,3419.9,6.2]
[1641490207208,0.00113685,3420.6,3420.0,1.0022737]
[1641490207405,0.00113685,3420.6,3420.0,3.54828618]
[1641490207602,0.00113685,3420.6,3420.1,0.00170527]
[1641490208003,0.00113685,3420.6,3420.2,1.77833015]
[1641490208205,0.00113685,3420.6,3420.2,2.50919015]
[1641490208403,0.00113685,3420.6,3420.3,0.7308162]
[1641490208604,0.96230147,3420.8,3420.3,1.8543]
[1641490208804,0.96230147,3420.8,3420.4,0.30113685]
[1641490209104,0.96230147,3420.8,3420.4,1.46254685]
[1641490209304,0.96230147,3420.8,3420.5,0.73071]
[1641490209505,0.09638962,3420.6,3420.5,1.38835]
[1641490209766,0.19277924,3420.6,3420.5,2.119038]
[1641490209961,0.96230147,3420.8,3420.5,3.119038]
[1641490210166,0.96230147,3420.8,3420.5,3.86248068]
[1641490210362,0.96230147,3420.8,3420.6,0.73067]
[1641490210662,0.96230147,3420.8,3420.6,3.2227183]
[1641490211066,0.96230147,3420.8,3420.7,1.0]
[1641490211266,0.96230147,3420.8,3420.7,3.0]
[1641490211567,0.96343831,3420.8,3420.7,3.0]
[1641490215497,0.96343831,3420.8,3420.7,4.04152083]
[1641490215896,0.96343831,3420.8,3420.7,6.74185587]
[1641490216097,0.96343831,3420.8,3420.7,5.39163326]
[1641490216298,0.96343831,3420.8,3420.7,41.36645647]
[1641490216497,0.07330334,3421.8,3420.7,38.82044399]
[1641490216700,0.07330334,3421.8,3421.2,1.4611277]
[1641490216897,0.00511581,3421.7,3421.2,0.3]
[1641490217147,0.00511581,3421.7,3421.2,1.0]
[1641490217455,0.00454739,3421.6,3421.1,2.46107]
[1641490217847,0.00397897,3421.5,3421.4,1.4611682]
[1641490219250,0.00397897,3421.5,3421.4,2.4611682]
[1641490219452,0.00397897,3421.5,3421.4,1.4611682]
[1641490219650,0.00397897,3421.5,3421.2,0.7307659]
[1641490220055,0.00341054,3421.4,3421.2,0.7307659]
[1641490220451,0.00284212,3421.3,3421.2,0.7307659]
[1641490220906,0.00284212,3421.3,3421.2,2.11550495]
[1641490222307,0.00284212,3421.3,3421.2,0.7307659]
[1641490223109,0.00284212,3421.3,3421.1,2.07710857]
[1641490223513,3.7022737,3421.2,3421.1,2.07710857]
[1641490223713,0.0022737,3421.2,3421.1,2.07710857]
[1641490223913,1.37038142,3421.2,3421.1,2.07710857]
[1641490224110,1.37038142,3421.2,3420.8,2.78464482]
[1641490224111,1.37038142,3421.2,3420.8,1.40753792]
[1641490224313,1.67038142,3421.2,3420.8,1.40753792]
[1641490224509,0.00170527,3421.1,3420.8,1.40753792]
[1641490224949,0.00113685,3421.0,3420.8,1.40753792]
[1641490225147,0.00113685,3421.0,3420.7,2.0]
[1641490225351,0.73273527,3421.1,3420.7,1.95]
[1641490225749,0.73213685,3421.0,3420.7,1.95]
[1641490226150,0.85601792,3421.0,3420.8,2.2384104]
[1641490226651,2.53141474,3421.0,3420.3,0.02032638]
[1641490226852,1.03118,3420.7,3420.3,0.02032638]
[1641490227051,0.422,3420.6,3420.4,0.00113684]
[1641490227752,1.90449352,3420.4,3420.3,0.00170527]
[1641490228394,1.90449352,3420.4,3420.1,0.00284211]
[1641490228799,0.00272876,3420.0,3419.8,0.19273057]
[1641490228999,24.05015989,3419.8,3419.6,1.16709832]
[1641490229196,24.05015989,3419.8,3419.5,2.07710857]
[1641490229197,17.542,3419.7,3419.5,2.07710857]
[1641490229399,0.73141,3419.6,3419.5,2.07710857]
[1641490229597,17.85141,3419.6,3419.5,2.07710857]
[1641490229796,2.11950678,3419.6,3419.5,2.07710857]
[1641490230298,2.11950678,3419.6,3418.8,8.27710857]
[1641490230604,2.25415332,3419.0,3418.9,0.00682108]
[1641490230797,3.66229786,3419.0,3418.9,0.00682108]
[1641490234150,3.66229786,3419.0,3418.8,6.15682108]
[1641490235150,3.66229786,3419.0,3418.9,6.2]
[1641490235757,3.66229786,3419.0,3418.9,7.6724]
[1641490237025,3.66229786,3419.0,3418.9,1.4724]
[1641490237828,1.26224011,3418.8,3418.5,2.07710857]
[1641490238028,0.73157,3418.7,3418.5,2.07710857]
[1641490238227,18.58315,3418.7,3418.6,0.00170527]
[1641490238431,19.30515,3418.7,3418.6,0.02217091]
[1641490239028,19.30515,3418.7,3418.3,6.2]
[1641490239428,19.30515,3418.7,3418.4,0.00113685]
[1641490240650,19.30515,3418.7,3418.4,3.685e-05]
[1641490240850,19.51283803,3418.7,3418.4,3.685e-05]
[1641490241054,17.1211,3418.6,3418.3,6.10003685]
[1641490241250,18.27367,3418.5,3418.4,0.03603393]
[1641490242153,19.27367,3418.5,3418.4,0.03603393]
[1641490242951,2.15367,3418.5,3418.4,0.03603393]
[1641490243401,19.27367,3418.5,3418.4,0.03603393]
[1641490244004,19.27367,3418.5,3418.4,5.833e-05]
[1641490244205,1.46344,3418.2,3417.9,6.2]
[1641490244406,17.12,3418.0,3417.9,6.15]
[1641490244614,19.4603,3418.0,3417.9,6.15]
[1641490245006,19.4603,3418.0,3417.8,6.2]
[1641490245207,25.58945718,3417.9,3417.8,6.2]
[1641490245609,22.18945718,3417.9,3417.8,6.20341054]
[1641490245808,2.99361232,3417.9,3417.8,7.59331876]
[1641490246006,2.26186232,3417.9,3417.8,7.59331876]
[1641490246408,2.26186232,3417.9,3417.8,6.20341054]
[1641490246709,1.82377677,3417.9,3417.8,6.20341054]
[1641490247153,1.82377677,3417.9,3417.8,6.23818094]
[1641490247353,1.82377677,3417.9,3417.8,9.71756363]
[1641490247958,2.53892972,3418.0,3417.8,9.71756363]
[1641490248155,0.422,3417.9,3417.8,9.71756363]
[1641490248458,0.422,3417.9,3417.8,9.71415309]
[1641490248862,0.422,3418.3,3417.8,9.71415309]
[1641490249057,1.15355,3418.3,3417.8,9.71415309]
[1641490249257,0.422,3418.3,3418.1,1.66895234]
[1641490249656,0.422,3418.3,3418.2,0.00113685]
[1641490250458,5.0,3418.5,3418.2,0.00113685]
[1641490250903,5.0,3418.5,3418.2,1.06304426]
[1641490251900,5.0,3418.5,3418.3,2.04534921]
[1641490252102,5.0,3418.5,3418.3,3.46497665]
[1641490252904,5.0,3418.5,3418.3,1.41962744]
[1641490253104,5.0,3418.5,3418.3,2.05975525]
[1641490253907,5.0,3418.5,3418.3,3.47938269]
[1641490254507,5.0,3418.5,3418.3,3.51414848]
[1641490254754,5.0,3418.5,3418.3,2.09452104]
[1641490254956,5.0,3418.5,3418.3,4.2239622]
[1641490255355,5.0,3418.5,3418.3,6.2109064]
[1641490255561,5.0,3418.5,3418.3,4.08146524]
[1641490257260,5.0,3418.5,3418.3,6.19805267]
[1641490257860,5.0,3418.5,3418.3,6.10867297]
[1641490258063,1.2235,3418.5,3418.3,6.10867297]
[1641490258609,1.2235,3418.5,3418.4,1.0]
[1641490259408,1.2235,3418.5,3418.3,4.09428125]
[1641490259809,1.2235,3418.5,3418.4,4.87465527]
[1641490260509,1.2235,3418.5,3418.4,5.87465527]
[1641490260709,1.2235,3418.5,3418.4,4.82465527]
[1641490260909,1.2235,3418.5,3418.4,5.82465527]
[1641490261309,1.2235,3418.5,3418.4,3.00975525]
[1641490261910,1.2235,3418.5,3418.4,2.00975525]
[1641490262149,1.17636604,3419.5,3419.4,1.68842251]
[1641490262349,1.17636604,3419.5,3418.4,4.81884619]
[1641490262746,1.17636604,3419.5,3418.4,2.80909094]
[1641490263148,1.70291234,3419.4,3418.7,1.60594288]
[1641490263351,1.70291234,3419.4,3418.4,2.80909094]
[1641490263550,0.00397896,3419.3,3418.4,2.80909094]
[1641490263750,0.00397896,3419.3,3419.0,1.05325625]
[1641490263954,0.00341054,3419.2,3419.0,1.05325625]
[1641490264355,0.00284211,3419.1,3419.0,1.05325625]
[1641490264555,0.00284211,3419.1,3418.7,1.05325625]
[1641490264951,0.00227369,3419.0,3418.7,1.05325625]
[1641490265351,0.00170527,3418.9,3418.7,1.05325625]
[1641490265552,1.16563786,3418.9,3418.7,1.05325625]
[1641490265755,4.20113684,3418.8,3418.7,1.05325625]
[1641490266206,0.00113684,3418.8,3418.7,1.05325625]
[1641490266807,1.09363395,3418.8,3418.7,1.05325625]
[1641490267010,1.09363395,3418.8,3418.4,1.0543931]
[1641490267011,3.61206345,3418.8,3418.4,1.0543931]
[1641490267307,0.73149,3418.6,3418.4,1.0543931]
[1641490267707,0.73149,3418.6,3418.4,0.00113685]
[1641490267907,1.09363395,3418.8,3418.4,0.00113685]
[1641490268108,3.6207493,3418.8,3418.4,0.00113685]
[1641490268409,3.6207493,3418.8,3418.3,0.00170527]
[1641490268410,0.73151,3418.6,3418.3,0.00170527]
[1641490268709,17.12,3418.4,3418.3,0.00170527]
[1641490268907,17.542,3418.4,3418.3,0.00170527]
[1641490269206,18.542,3418.4,3418.3,0.00170527]
[1641490270055,18.542,3418.4,3418.3,0.01306392]
[1641490270251,18.542,3418.4,3418.3,0.01135865]
[1641490270451,18.542,3418.4,3418.3,0.01306392]
[1641490271652,1.422,3418.4,3418.3,0.01306392]
[1641490271852,0.422,3418.4,3418.3,0.01306392]
[1641490273052,17.542,3418.4,3418.3,0.01306392]
[1641490273252,18.3632,3418.4,3418.3,0.01306392]
[1641490273508,20.09483,3418.4,3418.3,0.01306392]
[1641490274203,20.09483,3418.4,3418.3,0.04782968]
[1641490274806,1.97483,3418.4,3418.3,0.04782968]
[1641490275405,1.15363,3418.4,3418.3,0.04782968]
[1641490276206,1.77603,3418.4,3418.3,0.04782968]
[1641490276407,4.36905632,3418.4,3418.3,0.04782968]
[1641490276807,22.48905632,3418.4,3418.3,0.04782968]
[1641490277657,2.77603,3418.4,3418.3,0.04782968]
[1641490277855,2.15363,3418.4,3418.3,0.04782968]
[1641490278056,1.15363,3418.4,3418.3,0.04782968]
[1641490280760,3.65905227,3418.4,3418.3,0.04782968]
[1641490281201,5.13670041,3418.4,3418.3,1.93780815]
[1641490282405,2.63127814,3418.4,3418.3,1.93780815]
[1641490282615,1.63127814,3418.4,3418.3,1.93780815]
[1641490282806,2.63127814,3418.4,3418.3,1.93780815]
[1641490283208,1.63127814,3418.4,3418.3,1.93780815]
[1641490283408,2.63127814,3418.4,3418.3,1.93780815]
[1641490283810,5.13669146,3418.4,3418.3,1.93780815]
[1641490284011,22.25669146,3418.4,3418.3,1.93780815]
[1641490286650,23.21419146,3418.4,3418.3,1.93780815]
[1641490286852,23.21419146,3418.4,3417.4,2.1065125]
[1641490286853,0.73174,3417.8,3417.4,2.1065125]
[1641490287057,3.01083294,3417.7,3417.4,2.1065125]
[1641490287251,2.9719,3417.7,3417.4,2.06148161]
[1641490287451,18.12,3417.6,3417.4,2.06148161]
[1641490287651,17.542,3417.5,3417.1,2.80795409]
[1641490287855,1.320866,3417.1,3417.0,2.80795409]
[1641490288051,2.352686,3417.1,3417.0,2.80795409]
[1641490288500,19.894686,3417.1,3416.9,3.37795409]
[1641490288701,19.894686,3417.1,3416.9,3.34295409]